bitfinex-derivatives/quotes_ETHF0:USTF0_20241230
["timestamp","ask_amount","ask_price","bid_price","bid_amount"]
[1735525334855,0.29389,3409.2,3409.1,3.2078]
[1735525335056,0.29388,3409.4,3409.1,3.5017]
[1735525335253,0.29389,3409.2,3409.1,3.2078]
[1735525335455,4.25527221,3409.6,3409.1,3.2078]
[1735525335648,0.29388,3409.4,3409.0,0.2939]
[1735525335846,3.2078,3409.5,3409.0,0.2939]
[1735525336051,0.29389,3409.3,3409.0,0.2939]
[1735525337453,0.29389,3409.3,3408.7,3.708]
[1735525337454,3.2078,3409.5,3409.4,0.29387]
[1735525337748,3.50167,3409.5,3408.7,3.708]
[1735525337954,3.50167,3409.5,3409.2,0.29389]
[1735525338553,3.2078,3409.5,3408.7,3.708]
[1735525338754,3.2078,3409.5,3409.3,0.29387]
[1735525339051,0.42767479,3409.9,3409.4,3.2078]
[1735525339258,0.42767479,3410.1,3409.4,3.2078]
[1735525339458,4.41906807,3410.2,3409.9,0.29383]
[1735525339657,4.12525807,3410.2,3409.5,0.4656]
[1735525339857,0.29382,3410.1,3409.8,0.29384]
[1735525340156,0.72207807,3410.1,3409.8,0.29384]
[1735525341052,0.42825807,3410.0,3409.5,0.4656]
[1735525341358,0.42825807,3410.3,3409.8,3.2078]
[1735525341566,0.42825807,3410.4,3410.3,0.2938]
[1735525342051,0.42825807,3410.4,3409.8,3.2078]
[1735525342256,0.42825807,3410.4,3410.3,0.2938]
[1735525342457,0.42966979,3410.4,3410.3,0.2938]
[1735525342652,0.29378,3410.5,3410.3,0.2938]
[1735525343053,0.29379,3410.4,3410.1,0.29381]
[1735525343255,0.42967914,3410.3,3410.2,0.2938]
[1735525345556,0.42978891,3410.3,3409.9,0.4694]
[1735525345760,0.42978891,3410.3,3410.2,3.5016]
[1735525345957,0.42978891,3410.4,3410.2,3.2078]
[1735525346253,0.42978891,3410.5,3410.2,3.2078]
[1735525346451,0.42978891,3410.5,3410.4,0.29379]
[1735525346653,0.42978891,3410.6,3410.5,0.29378]
[1735525346849,3.63758891,3411.0,3410.4,0.73448]
[1735525347056,0.4675,3411.5,3410.4,0.73448]
[1735525347057,0.42978891,3411.1,3410.9,3.2078]
[1735525347356,0.42978891,3411.2,3411.1,0.29373]
[1735525347555,0.42978891,3411.3,3411.1,0.29373]
[1735525347764,0.42978891,3411.2,3411.1,0.29373]
[1735525347962,0.42978891,3411.3,3411.2,0.29372]
[1735525348162,0.43025371,3411.3,3411.0,0.29374]
[1735525348656,0.4675,3411.5,3411.1,0.29373]
[1735525348657,0.43004526,3411.2,3411.1,0.29373]
[1735525349056,0.4675,3411.5,3411.2,0.29372]
[1735525349256,0.4675,3411.5,3411.3,0.29371]
[1735525350954,0.4675,3411.5,3410.9,3.2078]
[1735525351164,0.29374,3411.0,3410.9,3.2078]
[1735525352568,0.4675,3411.5,3410.9,3.2078]
[1735525352860,0.29372,3411.2,3410.9,3.2078]
[1735525353162,0.4675,3411.5,3410.9,3.2078]
[1735525353463,0.29374,3411.0,3410.9,3.2078]
[1735525353854,0.4675,3411.5,3410.9,3.2078]
[1735525354260,0.29371,3411.3,3410.9,3.2078]
[1735525354557,0.29371,3411.4,3411.1,0.29372]
[1735525354966,0.4675,3411.5,3410.9,3.2078]
[1735525355164,0.29372,3411.2,3410.9,3.50154]
[1735525355463,2.81537221,3411.2,3410.5,3.2078]
[1735525355755,2.81537221,3411.2,3410.3,0.481]
[1735525355961,0.29379,3410.4,3410.3,0.481]
[1735525356664,0.29379,3410.4,3410.2,0.2938]
[1735525357064,0.29378,3410.5,3410.2,0.2938]
[1735525357465,0.9348,3410.8,3410.1,3.2078]
[1735525357761,0.9348,3410.8,3410.7,0.29376]
[1735525358555,0.453,3410.8,3410.7,0.29376]
[1735525359967,0.4839,3411.1,3410.5,3.2078]
[1735525360170,0.43100136,3410.6,3410.5,3.2078]
[1735525360463,0.43100136,3410.6,3410.5,3.50158]
[1735525360666,0.43100136,3410.7,3410.5,3.2078]
[1735525360865,0.43100136,3410.7,3410.6,0.29377]
[1735525361667,0.43100136,3410.8,3410.7,0.29376]
[1735525361966,0.43100136,3410.8,3410.6,1.0046]
[1735525361967,0.43100136,3411.0,3410.9,0.29374]
[1735525362167,0.43100136,3411.0,3410.9,3.50154]
[1735525363269,0.43100136,3411.1,3410.9,3.2078]
[1735525363570,0.43100136,3411.1,3411.0,0.29374]
[1735525363760,0.43100136,3411.2,3410.9,3.2078]
[1735525363957,0.43100136,3411.2,3411.1,0.29373]
[1735525364669,0.43100136,3411.2,3410.9,3.2078]
[1735525364970,0.43100136,3411.2,3411.1,0.29373]
[1735525365264,0.29369,3411.6,3411.4,0.2937]
[1735525365471,0.29369,3411.6,3411.3,0.29371]
[1735525365671,3.2078,3411.7,3410.9,3.2078]
[1735525365871,0.43116558,3411.1,3411.0,0.29374]
[1735525366064,0.43116558,3411.2,3410.9,3.2078]
[1735525366270,0.43116558,3411.2,3411.1,0.29373]
[1735525366662,3.2078,3411.7,3410.9,3.2078]
[1735525366869,0.43139416,3411.1,3411.0,0.29374]
[1735525367374,0.43139416,3411.1,3411.0,0.81384]
[1735525367668,3.2078,3411.3,3410.6,0.29376]
[1735525367969,0.5224,3411.0,3410.9,0.29374]
[1735525368475,0.5003,3411.2,3411.1,0.29373]
[1735525369064,0.5003,3411.2,3410.6,0.73443]
[1735525369065,0.5224,3411.5,3411.4,0.2937]
[1735525370363,3.2078,3411.7,3411.6,0.29368]
[1735525370564,0.5003,3411.8,3411.7,0.29368]
[1735525379679,0.5003,3411.8,3411.5,3.2078]
[1735525379980,0.79397,3411.8,3411.7,0.29368]
[1735525380186,0.5003,3411.8,3411.7,0.29368]
[1735525380379,0.5003,3411.8,3411.0,3.2078]
[1735525380380,3.7081,3411.8,3411.0,3.2078]
[1735525380680,0.29372,3411.2,3411.0,3.50153]
[1735525381076,3.7081,3411.8,3411.0,3.2078]
[1735525381273,0.79398,3411.8,3411.6,0.29368]
[1735525381783,0.79397,3411.8,3411.6,0.29368]
[1735525383073,0.29368,3411.7,3411.5,0.29369]
[1735525383478,0.5003,3411.8,3411.4,0.2937]
[1735525383479,0.29369,3411.6,3411.4,0.2937]
[1735525383780,0.29368,3411.7,3411.1,3.2078]
[1735525383981,0.72588419,3411.2,3411.1,3.2078]
[1735525384180,0.29376,3410.8,3410.7,3.2078]
[1735525384784,0.29376,3410.8,3410.4,4.5771441]
[1735525384785,0.29378,3410.5,3410.4,4.5771441]
[1735525385284,0.29377,3410.6,3410.4,4.8709341]
[1735525385485,0.29377,3410.7,3410.5,0.29378]
[1735525385889,2.35106286,3410.9,3410.5,0.29378]
[1735525386080,0.29377,3410.7,3410.5,0.29378]
[1735525386989,0.29377,3410.6,3410.4,0.29378]
[1735525388189,2.35106286,3410.9,3410.5,0.29377]
[1735525388190,0.29376,3410.7,3410.5,0.29377]
[1735525388382,2.35106286,3410.9,3410.5,0.29377]
[1735525388690,0.29377,3410.6,3410.5,0.29377]
[1735525389790,0.29378,3410.5,3410.3,0.81729]
[1735525389995,2.35106286,3410.9,3410.3,0.5235]
[1735525390289,0.29377,3410.6,3410.4,0.29379]
[1735525390688,2.35106286,3410.9,3410.3,0.5235]
[1735525390689,0.29376,3410.7,3410.5,0.29377]
[1735525393496,2.35106286,3410.9,3410.5,0.29377]
[1735525394099,0.29377,3410.7,3410.5,0.29377]
[1735525396399,0.29378,3410.6,3410.4,0.29378]
[1735525396904,0.43194854,3410.5,3410.3,0.29379]
[1735525397503,0.72572854,3410.5,3410.3,0.29379]
[1735525397904,0.43194854,3410.5,3410.3,0.29379]
[1735525398095,0.43194854,3410.6,3410.4,0.29379]
[1735525398303,0.72571854,3410.6,3410.4,0.29379]
[1735525399006,0.72501397,3410.6,3410.4,0.29379]
[1735525399504,0.72498702,3410.6,3410.4,0.29379]
[1735525400803,0.72498702,3410.6,3410.5,0.29378]
[1735525401004,2.78227988,3410.6,3410.2,3.2078]
[1735525401206,0.43098154,3410.3,3410.2,3.5016]
[1735525401395,0.72477154,3410.4,3410.3,0.2938]
[1735525401596,0.72477228,3410.4,3410.3,0.2938]
[1735525403200,0.29379,3410.4,3410.3,0.2938]
[1735525403598,2.35106286,3410.6,3410.3,0.2938]
[1735525403805,0.29379,3410.5,3410.3,0.2938]
[1735525404006,0.29379,3410.4,3410.3,0.2938]
[1735525404201,2.35106286,3410.6,3409.8,3.2078]
[1735525404202,5.55886286,3410.6,3409.8,3.2078]
[1735525404404,0.43090294,3410.1,3409.8,3.2078]
[1735525404708,0.29384,3409.8,3409.7,4.5771441]
[1735525404902,2.88626286,3410.0,3409.7,4.5771441]
[1735525405301,3.18009286,3410.0,3409.9,0.29383]
[1735525405899,0.82903,3410.0,3409.9,0.29383]
[1735525406097,0.82903,3410.0,3409.8,0.29384]
[1735525406302,0.43061793,3409.9,3409.8,0.29384]
[1735525406507,0.43068109,3409.9,3409.8,0.29384]
[1735525406803,0.43068109,3410.1,3409.8,3.2078]
[1735525407006,0.43068109,3410.2,3410.1,0.29381]
[1735525407207,1.43288109,3410.3,3410.2,0.2938]
[1735525407408,1.0022,3410.3,3410.2,0.2938]
[1735525407799,1.0022,3410.3,3409.9,0.5179]
[1735525407997,0.43098392,3410.2,3410.0,0.29381]
[1735525408209,0.43092178,3410.1,3409.8,3.2078]
[1735525408410,0.43092178,3409.9,3409.8,3.50163]
[1735525408610,0.43092178,3409.9,3409.8,3.2078]
[1735525408911,3.35326286,3410.3,3409.8,3.2078]
[1735525409208,0.29382,3410.1,3409.9,0.29383]
[1735525409412,3.35326286,3410.3,3409.5,5.0950441]
[1735525409601,0.43076478,3409.7,3409.5,4.5771441]
[1735525409807,0.43076478,3409.7,3409.4,3.2078]
[1735525409808,1.28966,3409.6,3409.4,3.2078]
[1735525410009,0.29387,3409.5,3409.4,3.50167]
[1735525410208,0.29387,3409.5,3409.4,3.2078]
[1735525410408,0.29387,3409.5,3409.0,5.5522441]
[1735525410409,1.42656785,3409.6,3409.0,4.5771441]
[1735525410611,0.2939,3409.1,3409.0,4.5771441]
[1735525410911,0.4306944,3409.2,3409.0,4.5771441]
[1735525411109,0.4306944,3409.2,3408.9,10.11808461]
[1735525411110,0.4306944,3409.2,3409.1,0.2939]
[1735525411311,0.43048849,3409.2,3409.1,0.2939]
[1735525411513,2.35106286,3409.4,3408.9,3.2078]
[1735525411709,0.29391,3409.0,3408.7,4.8710741]
[1735525411910,0.4822,3408.9,3408.7,4.8710741]
[1735525412106,0.4822,3408.9,3408.7,4.5771441]
[1735525412305,0.4822,3408.9,3408.8,0.29393]
[1735525413414,0.43047687,3409.2,3409.1,0.2939]
[1735525413609,0.29389,3409.3,3409.1,0.2939]
[1735525413610,0.72436687,3409.3,3409.1,0.2939]
[1735525413813,0.43047687,3409.2,3409.1,0.2939]
[1735525414618,0.43014049,3409.3,3408.9,3.2078]
[1735525414816,0.43014049,3409.3,3409.2,0.29389]
[1735525416318,0.43014049,3409.5,3409.0,0.4812]
[1735525416515,3.7039,3409.6,3409.0,0.4812]
[1735525416516,0.43014049,3409.4,3409.1,0.2939]
[1735525416819,0.43014049,3409.5,3409.4,0.29387]
[1735525417519,0.43014049,3409.5,3409.0,0.4812]
[1735525417520,0.42996321,3409.5,3409.0,0.4812]
[1735525417709,0.42996321,3409.4,3408.9,3.2078]
[1735525417914,0.42996321,3409.3,3409.2,0.29389]
[1735525418121,0.42993119,3409.4,3409.2,0.29389]
[1735525418423,0.72380119,3409.4,3409.2,0.29389]
[1735525419518,0.72382119,3409.3,3409.0,0.2939]
[1735525419814,0.43004763,3409.2,3409.0,0.2939]
[1735525420012,0.72393763,3409.2,3409.0,0.2939]
[1735525420214,0.72403513,3409.2,3409.0,0.2939]
[1735525420416,0.43014513,3409.2,3409.0,0.2939]
[1735525420812,0.43014513,3409.2,3409.1,0.2939]
[1735525421313,0.43014513,3409.3,3409.1,0.29389]
[1735525422922,0.43014513,3409.3,3409.2,0.29389]
[1735525423120,0.43014513,3409.5,3408.9,3.2078]
[1735525423320,4.13404513,3409.6,3408.9,3.94259]
[1735525423521,3.7039,3409.6,3409.5,0.29387]
[1735525424022,3.2078,3410.0,3409.9,0.29383]
[1735525424415,0.29382,3410.1,3409.9,0.29383]
[1735525424717,0.29382,3410.1,3409.4,1.5555]
[1735525424718,0.29382,3410.0,3409.8,0.29383]
[1735525425526,0.29382,3410.1,3409.9,0.29383]
[1735525425714,2.35106286,3410.3,3409.9,0.29383]
[1735525425920,2.35106286,3410.3,3409.4,4.7633]
[1735525426115,0.29381,3410.2,3410.0,0.29382]
[1735525426325,2.35106286,3410.3,3409.4,3.2078]
[1735525426326,7.35106286,3410.3,3409.4,3.2078]
[1735525426518,0.29387,3409.5,3409.4,3.2078]
[1735525426923,0.4922,3409.9,3409.4,3.50167]
[1735525427122,0.29385,3409.7,3409.4,3.50167]
[1735525427324,0.29386,3409.6,3409.4,3.50167]
[1735525428330,2.35106286,3410.0,3409.4,3.2078]
[1735525428525,0.29387,3409.5,3409.4,3.2078]
[1735525430922,1.0368,3409.6,3409.4,3.2078]
[1735525431232,0.29385,3409.7,3409.5,0.29386]
[1735525431533,0.29385,3409.7,3409.4,3.2078]
[1735525431534,6.80186286,3410.0,3409.4,3.2078]
[1735525431734,3.2078,3410.0,3409.9,0.29383]
[1735525432026,3.2078,3410.0,3409.5,0.5018]
[1735525432231,0.29385,3409.7,3409.6,0.5237]
[1735525432533,3.50163,3410.0,3409.8,0.29384]
[1735525433134,3.2078,3410.0,3409.8,0.29384]
[1735525433335,3.2078,3410.0,3409.9,0.29383]
[1735525433631,3.2078,3410.0,3409.8,0.29383]
[1735525433833,3.2078,3410.0,3409.6,1.055]
[1735525434032,0.29383,3409.9,3409.7,0.29384]
[1735525434937,0.29383,3409.9,3409.7,0.29385]
[1735525435338,0.29383,3409.9,3409.6,1.055]
[1735525435339,0.29383,3409.9,3409.6,0.81755]
[1735525436140,0.29383,3409.9,3409.7,0.29385]
[1735525436934,0.29383,3409.9,3409.6,0.81755]
[1735525437338,0.29384,3409.8,3409.6,0.29385]
[1735525438132,0.29383,3409.9,3409.6,0.29385]
[1735525438434,0.29383,3409.9,3409.7,0.29384]
[1735525439139,3.2078,3410.0,3409.4,3.2078]
[1735525439437,0.5041,3409.8,3409.4,3.2078]
[1735525439739,0.29386,3409.6,3409.4,3.50167]
[1735525439931,0.29386,3409.6,3409.4,0.29387]
[1735525441339,0.29387,3409.5,3409.2,0.9992]
[1735525441533,0.5041,3409.8,3409.0,3.2078]
[1735525441734,0.2939,3409.2,3409.0,3.5017]
[1735525441941,0.29388,3409.3,3409.1,0.2939]
[1735525442135,0.78188,3409.4,3409.2,0.29389]
[1735525443840,0.78188,3409.4,3409.1,0.5302]
[1735525444044,3.2078,3409.6,3409.5,0.29387]
[1735525445037,0.5041,3409.8,3409.4,3.2078]
[1735525445336,0.29383,3409.9,3409.7,0.29385]
[1735525446133,0.29383,3409.9,3409.5,0.5228]
[1735525446134,3.40471951,3410.0,3409.5,0.5228]
[1735525446338,3.40471951,3410.1,3409.5,3.60853286]
[1735525446539,3.40471951,3410.1,3410.0,0.29382]
[1735525447336,3.40471951,3410.1,3409.9,0.29382]
[1735525447533,3.40471951,3410.1,3409.5,0.5228]
[1735525447733,0.29383,3409.9,3409.5,3.7306]
[1735525448043,0.2938,3410.3,3410.1,0.29381]
[1735525448936,0.2938,3410.3,3409.6,45.3771441]
[1735525449137,0.29381,3410.2,3410.0,0.29382]
[1735525449743,0.29381,3410.2,3409.6,45.3771441]
[1735525449944,0.29382,3410.1,3409.9,0.29383]
[1735525450844,0.29382,3410.1,3409.6,4.5771441]
[1735525451045,0.29382,3410.1,3409.9,0.29383]
[1735525452248,2.57103756,3410.1,3409.9,0.29383]
[1735525452938,2.27721756,3410.1,3409.5,3.7306]
[1735525453145,0.29382,3410.0,3409.8,0.29384]
[1735525453541,0.29385,3409.7,3409.5,3.50166]
[1735525453741,0.29384,3409.8,3409.5,3.50166]
[1735525453939,0.29385,3409.7,3409.5,3.2078]
[1735525454140,0.29385,3409.7,3409.5,3.50166]
[1735525454940,2.27721756,3409.8,3409.7,0.29385]
[1735525455734,4.21435951,3409.9,3409.7,0.29385]
[1735525456542,4.21435951,3409.9,3409.2,0.5062]
[1735525456543,3.92051951,3409.9,3409.2,0.5062]
[1735525456748,0.29385,3409.7,3409.6,0.29386]
[1735525457242,0.29384,3409.8,3409.7,0.29385]
[1735525457437,3.08897042,3409.9,3409.7,0.29385]
[1735525457639,3.08897042,3409.9,3409.6,3.2078]
[1735525457835,2.79513042,3409.9,3409.3,4.5771441]
[1735525458141,0.29387,3409.5,3409.4,0.29387]
[1735525458440,0.29387,3409.5,3409.3,4.8710241]
[1735525458841,5.14619328,3409.9,3409.3,4.5771441]
[1735525459045,2.79513042,3409.9,3409.3,4.5771441]
[1735525459248,2.79513042,3409.9,3409.8,0.29384]
[1735525459745,0.5158,3409.9,3409.8,0.29384]
[1735525460547,0.5158,3409.9,3409.5,3.2078]
[1735525460746,0.80964,3409.9,3409.7,0.29384]
[1735525460938,0.5158,3409.9,3409.5,3.2078]
[1735525461140,2.79591083,3409.9,3409.4,4.5771441]
[1735525461340,0.29387,3409.5,3409.4,4.5771441]
[1735525462350,0.29388,3409.4,3409.2,0.29389]
[1735525462839,1.0399,3409.3,3409.2,0.29389]
[1735525463446,1.22366392,3409.3,3409.2,0.29389]
[1735525463837,1.22366301,3409.3,3409.2,0.29389]
[1735525464341,1.0399,3409.3,3409.2,0.29389]
[1735525465448,1.0399,3409.3,3409.1,3.50169]
[1735525465647,1.0399,3409.3,3409.2,0.29389]
[1735525466843,0.29389,3409.2,3409.1,3.2078]
[1735525467846,3.39096286,3409.3,3409.1,3.2078]
[1735525467848,3.68485286,3409.3,3409.1,3.5017]
[1735525468335,3.39096286,3409.3,3409.1,3.2078]
[1735525468836,0.29389,3409.2,3409.1,3.2078]
[1735525469240,3.39096286,3409.3,3409.1,0.2939]
[1735525469241,1.33378,3409.3,3409.1,0.2939]
[1735525470346,3.61482796,3409.3,3409.1,0.2939]
[1735525471242,3.32094796,3409.3,3409.2,0.29389]
[1735525472353,3.32094796,3409.3,3408.8,4.5771441]
[1735525472544,3.61482796,3409.3,3409.1,0.29389]
[1735525473045,0.2939,3409.2,3409.0,0.2939]
[1735525473248,3.32094796,3409.3,3408.8,4.5771441]
[1735525473441,3.61483796,3409.3,3409.1,0.29389]
[1735525473648,2.28104796,3409.4,3409.1,3.2078]
[1735525473851,2.28104796,3409.4,3409.3,0.29388]
[1735525474043,2.71323959,3409.4,3409.3,0.29388]
[1735525474348,2.28104796,3409.4,3409.3,41.09388]
[1735525474943,5.67453253,3409.9,3409.3,41.09388]
[1735525474944,2.28104796,3409.8,3409.5,0.29387]
[1735525475148,0.43223436,3409.6,3409.5,3.50167]
[1735525475844,0.43223134,3409.6,3409.5,3.2078]
[1735525476042,0.43223134,3409.6,3409.5,3.50167]
[1735525476647,2.57486796,3410.1,3409.5,7.7849441]
[1735525476844,2.35106286,3409.9,3409.5,7.7849441]
[1735525477047,0.29386,3409.6,3409.5,7.7849441]
[1735525477749,0.29386,3409.6,3409.5,3.2078]
[1735525478248,0.79586,3409.6,3409.5,3.2078]
[1735525479252,3.07690796,3409.6,3409.5,3.2078]
[1735525479955,5.13411082,3409.6,3409.0,4.5771441]
[1735525480258,5.77736408,3409.6,3409.0,4.5771441]
[1735525480457,5.77736408,3409.6,3409.0,4.8710441]
[1735525480657,0.2939,3409.2,3409.0,4.8710441]
[1735525481252,0.2939,3409.2,3409.0,0.2939]
[1735525482758,2.57494796,3409.2,3409.0,0.2939]
[1735525483255,2.28104796,3409.2,3409.1,0.2939]
[1735525484159,2.57491796,3409.5,3409.3,0.29388]
[1735525485162,0.29387,3409.5,3409.3,0.29388]
[1735525486359,2.57491796,3409.5,3409.3,0.29388]
[1735525486553,0.29387,3409.4,3409.2,0.29389]
[1735525486949,0.29387,3409.4,3409.2,3.50169]
[1735525487350,0.29387,3409.4,3409.2,0.29389]
[1735525491065,2.57491796,3409.5,3409.3,0.29388]
[1735525491257,2.28104796,3409.5,3409.0,3.2078]
[1735525491457,2.28104796,3409.5,3409.4,0.29387]
[1735525492461,2.28104796,3409.5,3409.0,3.2078]
[1735525492663,0.29389,3409.3,3409.1,0.2939]
[1735525493956,2.57493796,3409.3,3409.1,0.2939]
[1735525494156,2.28104796,3409.3,3409.0,3.2078]
[1735525494354,2.28104796,3409.3,3409.2,0.29389]
[1735525495460,2.28104796,3409.5,3409.0,3.2078]
[1735525495666,2.28104796,3409.5,3409.4,0.29387]
[1735525496760,2.28104796,3409.6,3409.2,4.5771441]
[1735525496964,2.28104796,3409.6,3409.5,0.29387]
[1735525498057,0.29384,3409.8,3409.7,0.29385]
[1735525499157,0.29386,3409.6,3409.4,4.5771441]
[1735525499364,1.31837,3409.5,3409.4,4.5771441]
[1735525500857,0.29388,3409.3,3409.1,3.50169]
[1735525501665,0.29388,3409.3,3409.1,3.5017]
[1735525501866,0.29388,3409.3,3409.1,0.2939]
[1735525502560,3.61952796,3409.4,3409.2,0.29389]
[1735525503065,2.28104796,3409.3,3409.2,0.29389]
[1735525505860,2.57488796,3409.8,3409.2,11.62726571]
[1735525506065,2.57488796,3409.8,3409.6,0.29385]
[1735525506967,2.28104796,3409.7,3409.6,0.29385]
[1735525507960,2.57489796,3409.7,3409.5,0.83246]
[1735525508162,2.28104796,3409.8,3409.7,0.29385]
[1735525508461,2.28104796,3409.8,3409.7,3.50165]
[1735525509672,3.07094796,3410.3,3410.1,0.29381]
[1735525510166,2.77714796,3410.3,3410.2,0.2938]
[1735525510861,2.28104796,3410.3,3410.2,0.2938]
[1735525511066,2.28104796,3410.4,3410.3,0.2938]
[1735525512469,2.79264796,3410.8,3410.7,0.29376]
[1735525512669,0.29377,3410.6,3410.4,0.29379]
[1735525512867,5.14371082,3410.8,3410.1,7.82536039]
[1735525513060,0.2938,3410.2,3410.1,7.82536039]
[1735525513670,0.2938,3410.2,3410.1,3.2078]
[1735525513870,2.28104796,3410.4,3410.1,3.2078]
[1735525514065,2.28104796,3410.4,3410.3,0.2938]
[1735525514471,2.57483796,3410.4,3410.2,0.2938]
[1735525514668,2.28104796,3410.4,3410.1,3.2078]
[1735525514871,0.2938,3410.2,3410.1,7.82536039]
[1735525515475,0.2938,3410.2,3410.1,4.61756039]
[1735525515972,0.823,3410.3,3410.1,4.61756039]
[1735525516375,3.10404796,3410.3,3410.0,0.29382]
[1735525517666,0.823,3410.3,3410.0,0.29382]
[1735525519273,0.5292,3410.3,3409.7,0.5307]
[1735525519574,0.5292,3410.3,3409.5,7.82536039]
[1735525519773,0.29386,3409.6,3409.5,4.61756039]
[1735525521774,0.29388,3409.4,3409.1,3.5017]
[1735525522377,0.29387,3409.5,3409.2,0.29389]
[1735525523072,0.29386,3409.6,3409.1,3.2078]
[1735525523378,2.28104796,3409.5,3409.3,0.29388]
[1735525523678,2.57491796,3409.5,3409.3,0.29388]
[1735525524075,2.28104796,3409.8,3409.3,2.35106286]
[1735525524281,2.28104796,3409.8,3409.7,0.29385]
[1735525524677,2.28104796,3409.8,3409.7,41.09385]
[1735525525278,2.71365576,3409.8,3409.7,41.09385]
[1735525525668,2.78224796,3410.2,3410.0,0.29382]
[1735525526378,3.07605796,3410.2,3410.0,0.29382]
[1735525527181,2.78224796,3410.2,3409.6,40.8]
[1735525527379,0.43257267,3409.7,3409.6,40.8]
[1735525527581,0.43257267,3409.7,3409.6,41.09386]
[1735525527779,0.5012,3410.2,3409.9,0.29382]
[1735525528077,0.29381,3410.1,3409.9,0.29382]
[1735525528586,0.5432,3410.0,3409.9,0.29382]
[1735525528774,0.5432,3410.0,3409.5,3.2078]
[1735525529080,0.29384,3409.8,3409.6,0.29386]
[1735525530078,0.5432,3410.0,3409.5,3.2078]
[1735525530676,0.83702,3410.0,3409.9,0.29383]
[1735525530876,0.83702,3410.0,3409.5,3.2078]
[1735525531081,0.83702,3410.0,3409.8,0.29384]
[1735525531676,0.5432,3410.0,3409.9,0.29383]
[1735525532281,0.83702,3410.0,3409.8,0.29383]
[1735525532678,0.83702,3410.0,3409.5,7.82536039]
[1735525532977,0.83702,3410.0,3409.9,0.29383]
[1735525533184,0.5432,3410.0,3409.9,0.29383]
[1735525535385,0.5432,3410.0,3409.5,7.82536039]
[1735525535386,0.29383,3409.9,3409.7,0.29384]
[1735525535583,0.5432,3410.0,3409.5,7.82536039]
[1735525535883,0.5432,3410.0,3409.9,0.29383]
[1735525540090,5.78264796,3410.3,3410.1,0.29381]
[1735525540291,6.32374796,3410.3,3410.1,0.29381]
[1735525540689,6.02994796,3410.3,3409.6,4.61756039]
[1735525540888,6.02994796,3410.3,3409.5,3.2078]
[1735525540889,0.2938,3410.2,3410.0,0.29382]
[1735525543093,2.57484796,3410.2,3410.0,0.29382]
[1735525544691,2.57485796,3410.2,3410.0,0.29382]
[1735525544893,2.57485796,3410.2,3410.1,0.29381]
[1735525545202,2.57485796,3410.2,3410.0,0.29382]
[1735525546397,2.57485796,3410.2,3410.1,0.29381]
[1735525546995,2.57485796,3410.2,3409.6,3.2078]
[1735525546996,2.57485796,3410.2,3410.0,0.29382]
[1735525547197,2.28104796,3410.1,3410.0,0.29382]
[1735525548101,2.57485796,3410.2,3409.6,7.82536039]
[1735525548298,2.57485796,3410.2,3410.1,0.29381]
[1735525548899,2.57485796,3410.2,3409.6,7.82536039]
[1735525549099,2.57485796,3410.2,3410.0,0.29382]
[1735525550602,2.28104796,3410.1,3410.0,0.29382]
[1735525553801,0.29381,3410.2,3410.0,0.29382]
[1735525554496,0.29381,3410.1,3410.0,0.29382]
[1735525555195,2.82214796,3410.3,3410.0,0.29382]
[1735525555695,0.29382,3410.1,3409.9,0.29383]
[1735525556202,0.29382,3410.1,3410.0,0.29382]
[1735525557302,0.29382,3410.1,3409.9,0.29383]
[1735525559506,2.57486796,3410.1,3409.9,0.29383]
[1735525560796,2.28104796,3410.1,3409.9,0.29383]
[1735525560997,0.29383,3409.9,3409.8,4.61756039]
[1735525561208,0.29383,3409.9,3409.8,2.23826039]
[1735525562394,0.44100666,3409.9,3409.3,3.2078]
[1735525562600,0.29387,3409.4,3409.3,3.2078]
[1735525564399,0.78707,3409.4,3409.3,3.2078]
[1735525566405,0.78707,3409.4,3409.0,7.41848461]
[1735525566406,0.4932,3409.4,3409.0,7.41848461]
[1735525566611,0.2939,3409.1,3409.0,6.91028461]
[1735525567411,3.5017,3409.1,3409.0,6.91028461]
[1735525567715,3.5017,3409.1,3408.6,11.51714103]
[1735525567716,0.29393,3408.7,3408.6,6.91028461]
[1735525568010,0.29392,3408.9,3408.6,6.91028461]
[1735525568211,0.43193231,3408.7,3408.6,7.20422461]
[1735525568412,0.43190037,3408.7,3408.6,7.20422461]
[1735525568613,0.4942,3408.8,3408.6,7.20422461]
[1735525568911,0.4942,3408.8,3408.5,3.2078]
[1735525569109,0.4942,3408.8,3408.6,0.29394]
[1735525569903,0.43171771,3408.7,3408.6,2.35106286]
[1735525570109,2.28039642,3409.1,3408.8,0.29393]
[1735525570110,0.43171771,3408.9,3408.8,0.29393]
[1735525571115,0.43171771,3409.0,3408.9,0.29392]
[1735525571313,2.71211413,3409.1,3408.8,40.8]
[1735525571513,0.2939,3409.2,3408.9,0.4938]
[1735525571716,0.2939,3409.2,3409.0,0.29391]
[1735525572310,0.2939,3409.2,3409.0,1.37721]
[1735525575012,0.29388,3409.4,3409.1,0.29389]
[1735525576416,0.29388,3409.4,3409.2,0.29389]
[1735525576622,0.29388,3409.4,3409.0,1.0833]
[1735525576623,3.32999642,3409.6,3409.0,1.0833]
[1735525576917,2.28039642,3409.6,3409.5,0.29387]
[1735525578019,2.57424642,3409.7,3409.5,0.29387]
[1735525578320,2.28039642,3409.7,3409.6,0.29386]
[1735525578621,2.28039642,3409.7,3409.6,1.84846]
[1735525579523,0.43261737,3409.8,3409.7,0.29385]
[1735525579825,0.43261737,3409.8,3409.7,3.50165]
[1735525580023,2.28039642,3410.1,3409.7,3.2078]
[1735525580323,2.57421642,3410.1,3409.9,0.29383]
[1735525580817,0.29382,3410.1,3409.9,0.29383]
[1735525581025,5.55886286,3410.3,3409.6,1.5546]
[1735525581219,0.29385,3409.7,3409.6,0.5202]
[1735525581422,6.19150036,3410.3,3409.6,0.5202]
[1735525581618,0.29384,3409.9,3409.6,0.81405]
[1735525581921,0.79354,3409.8,3409.6,0.81405]